Cogmind - Beta 13 @@@ ROGUE MODE // 2024.06.01 @ 08:23:03 Player: tauceti Result: Destroyed self with Rocket Launcher Performance ------------- Evolutions (0) 0 Regions Visited (1) 200 Robots Destroyed (8) 40 Value Destroyed (198) 198 Prototype IDs (0) 0 Alien Tech Used (0) 0 Bonus (0) 0 TOTAL SCORE: 438 Bonus ------- None Cogmind --------- Core Integrity 0/250 Matter 247/300 Energy 250/250 System Corruption 0% Temperature Cool (24) Movement Treading (160) Location -10/Materials Parts ------- > --- POWER (1) -------- Ion Engine > --- PROPULSION (2) --- Light Treads > --- UTILITY (2) ------ Small Storage Unit > --- WEAPON (2) ------- Rocket Launcher Rocket Launcher > --- INVENTORY (8) ---- Light Ion Engine Aluminum Leg Aluminum Leg Wheel Wheel EM Pulse Gun Light Assault Rifle Light Assault Rifle Peak State ------------ > --- POWER ------------ Ion Engine > --- PROPULSION ------- Light Treads > --- UTILITY ---------- Small Storage Unit > --- WEAPON ----------- Rocket Launcher Rocket Launcher > --- INVENTORY -------- Light Ion Engine Aluminum Leg Aluminum Leg Wheel Wheel EM Pulse Gun Light Assault Rifle Light Assault Rifle [Rating: 7] Favorites ----------- Power Ion Engine Engine Ion Engine Propulsion Light Treads Treads Light Treads Wheel Wheel Utility Small Storage Unit Storage Small Storage Unit Weapon EM Pulse Gun Energy Gun EM Pulse Gun Ballistic Gun Light Assault Rifle Launcher Rocket Launcher Build | -11 -10 ------- Run | Yrd Mat Slots Evolved . | . . Power . | . . Propulsion . | . . Utility . | . . Weapon . | . . Parts Attached 13 | 6 7 Power 1 | 1 . Engine 1 | 1 . Core . | . . Reactor . | . . Propulsion 7 | 2 5 Treads 4 | . 4 Leg . | . . Wheel 3 | 2 1 Hover . | . . Flight . | . . Utility 1 | 1 . Device . | . . Storage 1 | 1 . Processor . | . . Hackware . | . . Protection . | . . Artifact . | . . Weapon 4 | 2 2 Energy Gun 1 | 1 . Energy Cannon . | . . Ballistic Gun 1 | 1 . Ballistic Cannon . | . . Launcher 2 | . 2 Special Weapon . | . . Impact Weapon . | . . Slashing Weapon . | . . Piercing Weapon . | . . Special Melee Weapon . | . . Unidentified Prototypes . | . . Parts Lost 1 | . 1 Power . | . . Propulsion 1 | . 1 Utility . | . . Weapon . | . . Highest Loss Streak 1 | . 1 To Critical Strikes . | . . Average Slot Usage (%) 76 | . 76 Engine 14 | . 14 Treads 16 | . 16 Wheel 2 | . 2 Storage 14 | . 14 Energy Gun 13 | . 13 Ballistic Gun 13 | . 13 Launcher 1 | . 1 Naked Turns . | . . Heaviest Build 18 | 13 18 Greatest Support 40 | 20 40 Greatest Overweight (x) 1 | . 1 Average Overweight (x) . | . . Largest Inventory Capacity 8 | 8 8 Average Capacity 7 | 6 8 Most Carried 8 | 6 8 Average Carried 6 | 3 6 Final Capacity 8 | 8 8 Final Carried 8 | 6 8 Class Distribution -------------------- 100% | Mutant Dominant Class ---------------- Mutant | -10/Materials Resources | -11 -10 ----------- Run | Yrd Mat Matter Collected 317 | 204 113 Remotely . | . . Salvage Created 306 | . 306 Parts 9 | . 9 Haulers Intercepted . | . . Recyclers Shooed . | . . Parts Field Recycled . | . . Retrieved Matter . | . . Parts Self-Destructed . | . . Prevented . | . . Kills | -11 -10 ------- Run | Yrd Mat Combat Hostiles Destroyed 6 | . 6 Guns 4 | . 4 AOE 2 | . 2 Classes Destroyed 3 | . 3 Recycler 2 | . 2 Swarmer 2 | . 2 Grunt 4 | . 4 Best Kill Streak 6 | . 6 Combat Bots Only 4 | . 4 Max Kills in Single Turn 2 | . 2 Gunslinging . | . . Exploded 2 | . 2 Melee . | . . Uniques/NPCs Destroyed . | . . Combat | -11 -10 -------- Run | Yrd Mat Hostile Shots Fired 32 | . 32 Missed 5 | . 5 Damage Taken 520 | . 520 Core 251 | . 251 Absorbed by Shields . | . . Core Remaining (%) 100 | 100 . Volleys Fired 13 | . 13 Largest 2 | . 2 Hottest 66 | . 66 Shots Fired 25 | . 25 Gun 22 | . 22 Cannon . | . . Launcher 3 | . 3 Special . | . . Kinetic 11 | . 11 Thermal . | . . Explosive 3 | . 3 Electromagnetic 11 | . 11 Robot Hit Streak 11 | . 11 Robot Miss Streak 1 | . 1 Penetration Max . | . . Secondary Targets . | . . Shots Hit Robots 17 | . 17 Core Hits 14 | . 14 Critical Kills . | . . Critical Parts Destroyed . | . . Critical Strikes . | . . Melee Attacks . | . . Impact . | . . Slashing . | . . Piercing . | . . Sneak Attacks . | . . Combat Hostiles . | . . Follow-up Attacks . | . . Damage Inflicted 555 | . 555 Guns 171 | . 171 Cannons . | . . Explosions 384 | . 384 Melee . | . . Ramming . | . . Kinetic 70 | . 70 Thermal 220 | . 220 Explosive 164 | . 164 Electromagnetic 101 | . 101 Impact . | . . Slashing . | . . Piercing . | . . Highest Corruption . | . . Average Corruption . | . . Corruption Purged . | . . Corruption Blocked . | . . Overload Shots . | . . Overflow Damage 48 | . 48 Projectiles . | . . Explosions 48 | . 48 Melee . | . . Knockbacks . | . . Impact . | . . Kinetic . | . . Secondary . | . . Self-Inflicted Damage 293 | . 293 Shots 5 | . 5 Rammed . | . . Targets Rammed . | . . Kicked . | . . Crushed . | . . Highest Temperature 94 | . 94 Average Temperature 42 | . 42 Received Heat Transfer 72 | . 72 Siege Activations . | . . Robots Corrupted . | . . Combat Hostiles . | . . Parts Fried . | . . Impact Corruptions . | . . Robots Melted . | . . Combat Hostiles . | . . Parts Melted . | . . Heat Transferred 150 | . 150 Parts Sabotaged . | . . Parts Stolen . | . . Parts Stripped . | . . Power Chain Reactions 1 | . 1 Alert | -11 -10 ------- Run | Yrd Mat Peak Influence 260 | . 260 Initial . | . . Average 139 | . 157 Maximum Alert Level 1 | . 1 Low Security (%) 54 | 100 48 Level 1 45 | . 51 Level 2 . | . . Level 3 . | . . Level 4 . | . . Level 5 . | . . High Security . | . . Max Security . | . . Squads Dispatched 3 | . 3 Investigation 1 | . 1 Extermination . | . . Reinforcement 2 | . 2 Assault . | . . Garrison . | . . Intercept . | . . Searches Triggered . | . . Construction Impeded . | . . Haulers Reinforced . | . . Active Scanning Responses . | . . Cargo Convoy Interrupts . | . . Stealth | -11 -10 --------- Run | Yrd Mat Distress Signals 3 | . 3 Communications Jammed . | . . Distress Signals . | . . Times Spotted 13 | . 13 Peak Tracking Total 6 | . 6 Tactical Retreats 3 | . 3 Traps | -11 -10 ------- Run | Yrd Mat Traps Triggered 1 | . 1 Indirectly . | . . Trap Hack Attempts . | . . Triggered . | . . Disarmed . | . . Reprogrammed . | . . Reused . | . . Traps Extracted . | . . Installed . | . . Triggered . | . . Machines | -11 -10 ---------- Run | Yrd Mat Machines Disabled 3 | . 3 Max in Single Turn 3 | . 3 Machines Repaired . | . . Machines Dismantled . | . . Machines Sabotaged . | . . Overloaded Fab Kills . | . . Hacking | -11 -10 --------- Run | Yrd Mat Machines Accessed 3 | . 3 Terminals 3 | . 3 Fabricators . | . . Repair Stations . | . . Recycling Units . | . . Scanalyzers . | . . Garrison Access . | . . Total Hacks 11 | . 11 Successful 4 | . 4 Failed 7 | . 7 Catastrophic 1 | . 1 Database Lockouts . | . . Manual 7 | . 7 Terminals 11 | . 11 Fabricators . | . . Repair Stations . | . . Recycling Units . | . . Scanalyzers . | . . Garrison Access . | . . Terminal Hacks 1 | . 1 Recall Reinforcements 1 | . 1 Fabricator Hacks . | . . Repair Station Hacks . | . . Recycling Unit Hacks . | . . Scanalyzer . | . . Garrison Access Hacks . | . . Unauthorized Hacks 3 | . 3 Terminals 3 | . 3 Botnet 3 | . 3 Fabricators . | . . Repair Stations . | . . Recycling Units . | . . Scanalyzers . | . . Garrison Access . | . . Data Cores Recovered . | . . Used . | . . Hacking Detections 3 | . 3 Full Trace Events . | . . Feedback Events . | . . Feedback Blocked . | . . Robot Schematics Acquired . | . . Robots Built . | . . Authchips . | . . Time . | . . Total Robot Build Rating . | . . Part Schematics Acquired . | . . Parts Built . | . . Authchips . | . . Time . | . . Total Part Build Rating . | . . Parts Repaired . | . . Time . | . . Parts Recycled . | . . Recycled Matter . | . . Retrieved Matter . | . . Retrieved Components . | . . Parts Scanalyzed . | . . Part Schematics Acquired . | . . Parts Damaged . | . . Bothacking | -11 -10 ------------ Run | Yrd Mat Used RIF Installer . | . . Robots Hacked . | . . Non-combat . | . . Combat . | . . Robot Hacks Applied . | . . Relay Couplers Released . | . . Fabnet Peak Effective % . | . . Robots Rewired . | . . Allies Hacked . | . . Hacks Repelled . | . . Allies | -11 -10 -------- Run | Yrd Mat Total Allies . | . . Largest Group . | . . Highest-Rated Group . | . . Highest-Rated Ally . | . . Total Orders . | . . Ally Attacks . | . . Total Damage . | . . Kills . | . . Allies Corrupted . | . . Allies Melted . | . . Intel | -11 -10 ------- Run | Yrd Mat Robot Analysis Total . | . . Derelict Logs Recovered . | . . Drone Launches . | . . Drone Recoveries . | . . Exploration | -11 -10 ------------- Run | Yrd Mat Turns Passed 498 | 58 440 Spaces Moved 283 | 53 230 Core 2 | 2 . Treads 191 | . 191 Legs . | . . Wheels 90 | 51 39 Hover . | . . Flight . | . . Fastest Speed 50 | 50 80 Average Speed 134 | 78 147 Slowest Speed 160 | 80 160 Overloaded Moves . | . . Propulsion Burnouts . | . . Robots Hopped . | . . Cave-ins Triggered . | . . Exploration Rate (%) 21 | 3 40 Regions Visited 1 Branch Regions . Pre-discovered Areas . | . . Known Exits Taken . | . . Unknown Exits Taken 1 | 1 . Scrap Searched . | . . Spaces Dug 28 | . 28 Terrain Destroyed 59 | . 59 Melee . | . . Projectile . | . . AOE 59 | . 59 Terrain Rammed . | . . Walls Destroyed . | . . Machines Disabled . | . . Actions | -11 -10 --------- Run | Yrd Mat Total 372 | 65 307 Wait 54 | 1 53 Move 282 | 52 230 Hop . | . . Pick Up 9 | 6 3 Fast Attach 6 | 6 . Attach . | . . Detach . | . . Swap 7 | . 7 Drop 1 | . 1 Fire 13 | . 13 Melee . | . . Ram . | . . Kick . | . . Crush . | . . Escape Stasis . | . . Rewire . | . . Trap . | . . Miscellaneous . | . . Route ------- -11/Scrapyard -10/Materials History --------- Turn | Location | Event 23 | -11/Scrapyard | Discovered new exit (range 16) 59 | -11/Scrapyard | Entered Materials 232 | -10/Materials | Core integrity fell below 50% 306 | -10/Materials | Build established: Mutant 497 | -10/Materials | Core integrity fell below 20% 499 | -10/Materials | Destroyed self with Rocket Launcher Last Messages --------------- 00245_ U-05 Engineer lays Concrete. 00247_ U-05 Engineer builds a Wall. 00248_ U-05 Engineer lays Concrete. 00250_ U-05 Engineer builds a Door. 00251_ Acquired Lgt. Assault Rifle. 00254_ U-05 Engineer builds a Wall. 00263_ U-05 Engineer lays Concrete. 00265_ U-05 Engineer builds a Wall. 00270_ K-01 Serf collects debris. 00285_ U-05 Engineer lays Concrete. 00299_ R-06 Scavenger collects Flight Unit. 00466_ Triggered Alarm Trap. 00466_ An alarm sounds. 00466_ ALERT: Alarm triggered, dispatching investigation squad. 00473_ Acquired Rocket Launcher. 00477_ Dropped EM Pulse Gun. 00477_ Acquired Rocket Launcher. 00481_ R-06 Scavenger collects EM Pulse Gun. 00483_ U-05 Engineer lays Concrete. 00499_ G-34 Mercenary destroyed. Map ----- +----------------------------------------------------+ | | | | | | | | | | | | | | | | | | | | | ?????????????????????????????????????? | | ?????????????????????????????????????? | | ?????????????????????????????????????? | | ????????????????#####????????????????? | | ??????????????### #####???????????? | | ??????????????# ???????????? | | ??????????????# ???????????? | | ??????????????# #??????????? | | ???????????????# #??????????? | | ???????????????# #??????????? | | ????????????????# ####???????? | | ????????????????? %g # #???????? | | ??????????????????? #???????? | | ???????????????????## %[ #???????? | | ???????????????????# = #####???? | | ???????????????????# @ !!#???? | | ???????????????????# # !!#???? | | ?????????????????# # ]]#???? | | ?????????????????# o # #???? | | ?????????????????# """ """ # !!#???? | | ?????????????????# """ """ # !!#???? | | ?????????????????# """ """ # #####???? | | ??????????????????? # #???????? | | ??????????????????? # #???????? | | ??????????????????? ?? # #???????? | | ??????????????????###????###/####????? | | ?????????????????? ???# #????? | | ?????????????? ???# """ #????? | | ?????????? #??#! """ #????? | | ?????????? T #??# """ #????? | | ?????????# #??# #????? | | ?????????# #??# !#????? | | ?????????# #??##+#####????? | | ?????????# #???# #????????? | | ?????????# """ #???# #????????? | | ?????????# """ #???# #????????? | | ?????????# """ #???# #????????? | | ?????????# ##### #????????? | | ?????????# #??###???? | | ?????????# """ #? #???? | +----------------------------------------------------+ Best States ------------- Heat Dissipation 25 Energy Generation 10 Energy Capacity 250 Matter Stores 300 Matter Capacity 300 Sight Range 16 Terrain Scan Density 10 Evasion (%) 44 Recoil Reduction 2 Item Schematics ----------------- None Robot Schematics ------------------ None Fabricated ------------ Nothing Alien Tech Used ----------------- None Achievements -------------- None Challenges ------------ None Game ------ Seed SapperBurstRifle Manual? 0 Play Time 00:07:08 Cumulative 19.2 hours Start 2024.06.01 @ 08:17:35 End 2024.06.01 @ 08:23:03 Sessions 1 Manual Loads 0 Difficulty Rogue Special Mode None Game No. 21 Rogue 16 Adventurer 5 Explorer 0 Win Type - Total 0 Types 0/0/0/0/0/0/0/0/0 Lore% 21 Gallery% 26 Achievement% 23 Wizard Run 0 Options --------- Layout 0 ASCII 0 Keyboard 0 Movement Arrows Keybinds 0 Fullscreen 2 Font 24/Smallcaps Map View 76x56 Zoom Use 0% Tactical HUD 1 Map Filters NONE Filters NONE Steam 1 RUN: 4ed3d7e1-ed96-4c3b-bf7a-99b3bc264171